[Event "ESTCC U50 2018"]
[Site "Walbrzych"]
[Date "2018.04.18"]
[Round "5"]
[White "Nuenchert, Eveline"]
[Black "Ruiz Bellon, Manuel"]
[Result "1/2-1/2"]
[ECO "C00"]
[WhiteElo "2033"]
[BlackElo "1861"]
[Annotator "NA"]
[PlyCount "47"]
[EventDate "2018.??.??"]
[EventCountry "POL"]
[SourceTitle "playchess.com"]
[Source "ChessBase"]
[SourceQuality "1"]
[WhiteTeam "Germany"]
[BlackTeam "Spain"]
[WhiteTeamCountry "GER"]
[BlackTeamCountry "ESP"]
[TimeControl "40/5400+30:1800+30"]

1. e4 {[%emt 0:00:00]} e6 {[%emt 0:00:26]} 2. d3 {[%emt 0:00:01]} d5 {[%emt 0:00:29]} 3. Nd2 {[%emt 0:00:05]} Nf6 {[%emt 0:00:34]} 4. Ngf3 {[%emt 0:00:15]} Nc6 {[%emt 0:00:43]} 5. c3 {[%emt 0:01:53]} e5 {[%emt 0:01:15]} 6. Be2 {[%emt 0:00:56]} a5 {[%emt 0:01:22]} 7. O-O {[%emt 0:01:03]} Bc5 {[%emt 0:00:48]} 8. Qc2 {[%emt 0:05:53] C00: French: Unusual White 2nd moves} (8. Nxe5 Nxe5 9. d4 O-O 10. exd5 Bxd4 11. cxd4 Ng6 12. d6 Qxd6 13. Nc4 Qd5 14. b3 Be6 15. Bf3 Qb5 {1-0 (41) Amin,B (2661)-Matamoros Franco,C (2488) Baku 2016}) 8... O-O {[%emt 0:00:29] LiveBook: 5 Games} 9. Nb3 {[%emt 0:02:50]} Be7 {[%emt 0:01:56]} 10. a4 {[%emt 0:02:36]} h6 {[%emt 0:02:27]} 11. h3 {[%emt 0:00:47]} Re8 $146 {[%emt 0:02:27]} ({Predecessor:} 11... b6 12. Re1 Bb7 13. Nh2 Bd6 14. Nf1 Ne7 15. Ng3 Re8 {1-0 (57) Kaulfuss,H (2246)-Wilhelm,J (2205) Germany 2003}) 12. Be3 {[%emt 0:00:45]} b6 {[%emt 0:00:40]} 13. Rad1 {[%emt 0:07:19]} Ba6 {[%emt 0:03:54]} 14. Rfe1 {[%emt 0:02:59]} Qc8 {[%emt 0:02:19]} 15. Nh4 {[%emt 0:02:19]} Qe6 {[%emt 0:06:42]} 16. Nf5 {[%emt 0:01:58]} Bf8 {[%emt 0:00:17]} 17. Bf3 {[%emt 0:04:07]} dxe4 {[%emt 0:03:36]} 18. dxe4 {[%emt 0:00:19]} Rad8 {[%emt 0:00:15]} 19. Nc1 {[%emt 0:01:45]} Kh7 {[%emt 0:08:53]} 20. Bd2 {[%emt 0:04:50]} Rd7 {[%emt 0:16:24]} 21. Ne3 {[%emt 0:02:20]} Red8 $11 {[%emt 0:01:39]} 22. Nd5 {[%emt 0:01:14]} Kg8 {[%emt 0:02:40]} 23. Nxf6+ {[%emt 0:00:35]} Qxf6 {[%emt 0:00:13]} 24. Be3 {[%emt 0:00:11]} 1/2-1/2

[Event "ESTCC U50 2018"]
[Site "Walbrzych"]
[Date "2018.04.18"]
[Round "5"]
[White "Sihvonen, Tero"]
[Black "Aegerter, Klaus"]
[Result "1-0"]
[ECO "B06"]
[WhiteElo "1988"]
[BlackElo "1731"]
[Annotator "NA"]
[PlyCount "93"]
[EventDate "2018.??.??"]
[EventCountry "POL"]
[SourceTitle "playchess.com"]
[Source "ChessBase"]
[SourceQuality "1"]
[WhiteTeam "Finland"]
[BlackTeam "Switzerland"]
[WhiteTeamCountry "FIN"]
[BlackTeamCountry "SUI"]
[TimeControl "40/5400+30:1800+30"]

1. e4 {[%emt 0:00:46]} g6 {[%emt 0:00:13]} 2. d4 {[%emt 0:00:11]} Bg7 {[%emt 0:00:09]} 3. Nc3 {[%emt 0:00:38]} d6 {[%emt 0:00:17]} 4. Bg5 {[%emt 0:00:32]} Nd7 {[%emt 0:01:30]} 5. Nf3 {[%emt 0:06:25]} c5 {[%emt 0:07:23]} 6. Be2 {[%emt 0:08:59]} cxd4 {[%emt 0:02:11]} 7. Nxd4 {[%emt 0:01:53]} Ngf6 {[%emt 0:05:30]} 8. O-O {[%emt 0:00:36]} O-O {[%emt 0:00:15]} 9. Kh1 {[%emt 0:00:25]} a6 $11 {[%emt 0:03:12]} 10. a4 {[%emt 0:01:27]} Nc5 {[%emt 0:05:28]} 11. Bf3 {[%emt 0:02:04]} Rb8 {[%emt 0:06:29]} 12. a5 {[%emt 0:03:14]} Ne6 {[%emt 0:01:32]} 13. Be3 {[%emt 0:01:06]} Nxd4 {[%emt 0:02:35]} 14. Bxd4 {[%emt 0:00:47]} Be6 {[%emt 0:02:11]} 15. h3 {[%emt 0:01:44]} Bd7 {[%emt 0:06:40]} 16. Ba7 {[%emt 0:03:14]} Rc8 {[%emt 0:01:41]} 17. Bb6 {[%emt 0:00:17]} Qe8 {[%emt 0:01:15]} 18. e5 {[%emt 0:00:31]} dxe5 {[%emt 0:00:38]} 19. Bxb7 {[%emt 0:00:26]} Rxc3 {[%emt 0:00:13]} 20. bxc3 {[%emt 0:00:33]} Bb5 {[%emt 0:05:18]} 21. Re1 {[%emt 0:01:15]} Nh5 {[%emt 0:11:56]} 22. Rb1 {[%emt 0:05:49]} Bc6 {[%emt 0:09:05]} 23. Bxc6 {[%emt 0:17:19]} Qxc6 {[%emt 0:00:13]} 24. Qd3 {[%emt 0:00:18]} f5 {[%emt 0:05:50]} 25. Rb4 {[%emt 0:06:05]} e4 {[%emt 0:07:25]} 26. Qc4+ {[%emt 0:00:28]} Qxc4 {[%emt 0:01:02]} 27. Rxc4 {[%emt 0:00:03]} Nf4 {[%emt 0:00:57]} 28. Rd1 {[%emt 0:02:02]} Ne2 {[%emt 0:00:58]} 29. Rd7 {[%emt 0:03:43]} Kf7 {[%emt 0:00:51]} 30. Bd4 {[%emt 0:00:26]} Bh6 {[%emt 0:01:59]} 31. g3 {[%emt 0:05:25]} f4 {[%emt 0:04:56]} 32. Rcc7 {[%emt 0:04:18]} Re8 {[%emt 0:01:07]} 33. gxf4 {[%emt 0:04:56]} Nxf4 {[%emt 0:01:09]} 34. Be3 {[%emt 0:00:51]} g5 {[%emt 0:00:19]} 35. Rc6 {[%emt 0:01:19]} Bg7 {[%emt 0:00:26]} 36. Rxa6 {[%emt 0:04:42]} Nxh3 {[%emt 0:00:51]} 37. Rb6 {[%emt 0:01:08]} Rc8 {[%emt 0:03:35]} 38. Rbb7 {[%emt 0:02:23]} Bf6 {[%emt 0:00:37]} 39. a6 {[%emt 0:00:31]} Rxc3 {[%emt 0:00:16]} 40. a7 {[%emt 0:00:00]} Ra3 {[%emt 0:00:02]} 41. Rxe7+ {[%emt 0:07:40]} Kg6 {[%emt 0:00:38]} 42. Re8 {[%emt 0:01:13]} Ra1+ {[%emt 0:03:02]} 43. Kh2 {[%emt 0:01:19]} Ng1 {[%emt 0:02:59]} 44. f4 {[%emt 0:11:20]} Nf3+ {[%emt 0:02:53]} 45. Kg2 {[%emt 0:01:36]} Re1 {[%emt 0:01:03]} 46. Rxe4 {[%emt 0:02:05]} g4 {[%emt 0:03:50]} 47. a8=Q {[%emt 0:02:29]} 1-0

[Event "ESTCC U50 2018"]
[Site "Walbrzych"]
[Date "2018.04.18"]
[Round "5"]
[White "Ciuro Munoz, Ricardo"]
[Black "Kierzek, Mira"]
[Result "1/2-1/2"]
[ECO "B01"]
[WhiteElo "1972"]
[BlackElo "2011"]
[Annotator "NA"]
[PlyCount "112"]
[EventDate "2018.??.??"]
[EventCountry "POL"]
[SourceTitle "playchess.com"]
[Source "ChessBase"]
[SourceQuality "1"]
[WhiteTeam "Spain"]
[BlackTeam "Germany"]
[WhiteTeamCountry "ESP"]
[BlackTeamCountry "GER"]
[TimeControl "40/5400+30:1800+30"]

1. e4 {[%emt 0:00:00]} d5 {[%emt 0:00:13]} 2. exd5 {[%emt 0:00:05]} Qxd5 {[%emt 0:00:12]} 3. d4 {[%emt 0:01:29]} Nf6 {[%emt 0:01:58]} 4. Nf3 {[%emt 0:00:58]} Bg4 {[%emt 0:05:17]} 5. Be2 {[%emt 0:00:12] LiveBook: 422 Games} e6 {[%emt 0:01:17]} 6. O-O {[%emt 0:00:38]} c6 {[%emt 0:01:35]} 7. Bf4 {[%emt 0:05:43]} Qd8 {[%emt 0:11:11]} 8. c4 {[%emt 0:03:21]} Be7 {[%emt 0:05:26]} 9. Nc3 {[%emt 0:02:51]} O-O {[%emt 0:01:34] B01: Scandinavian Defence} 10. Qd2 {[%emt 0:05:09]} Na6 $146 {[%emt 0:06:38]} ({Predecessor:} 10... Nbd7 11. Rfd1 Nb6 12. Ne5 Bxe2 13. Qxe2 Bb4 14. Rd3 Qe7 15. Rh3 Bxc3 16. bxc3 Nbd7 17. Qd3 {1-0 (39) Qin,Z (2446)-Devine,N (1868) Ottawa 2014}) 11. h3 {[%emt 0:05:42]} Bf5 {[%emt 0:05:42]} 12. a3 {[%emt 0:03:03]} Nc7 {[%emt 0:01:34]} 13. Qe3 {[%emt 0:00:50]} Rc8 {[%emt 0:05:20]} 14. Nh4 {[%emt 0:01:31]} Bg6 {[%emt 0:01:24]} (14... b5 $14) 15. Nxg6 {[%emt 0:00:09]} hxg6 {[%emt 0:00:07]} 16. Rad1 {[%emt 0:00:09]} Re8 {[%emt 0:07:35]} 17. Bf3 {[%emt 0:02:58]} Bd6 {[%emt 0:07:03]} 18. Bg5 {[%emt 0:03:26]} Be7 {[%emt 0:01:17]} 19. Rfe1 {[%emt 0:02:11]} Kf8 $16 {[%emt 0:08:10]} (19... Nfd5 $1 $17 {[%cal Rd5e3]} 20. Bxe7 Nxe3 21. Bxd8 Nxd1 22. Bxc7 Nxc3) 20. Rd3 {[%emt 0:06:16]} Qd7 {[%emt 0:05:05]} 21. Red1 {[%emt 0:01:02]} Rcd8 {[%emt 0:01:50]} 22. Qf4 {[%emt 0:14:09]} Kg8 {[%emt 0:00:42]} 23. Bxf6 {[%emt 0:06:36]} Bxf6 {[%emt 0:02:36]} 24. Ne4 {[%emt 0:05:09]} Be7 {[%emt 0:00:46]} 25. b4 {[%emt 0:01:13]} Rf8 {[%emt 0:00:45]} 26. Nc3 {[%emt 0:01:55]} Bf6 {[%emt 0:05:03]} 27. Qe4 {[%emt 0:03:49]} Rfe8 {[%emt 0:03:31]} 28. Na4 {[%emt 0:01:06]} Be7 {[%emt 0:01:08]} 29. Qe2 {[%emt 0:03:09]} Qc8 {[%emt 0:02:07]} 30. Nc3 {[%emt 0:02:57]} Qd7 {[%emt 0:00:21]} 31. Ne4 {[%emt 0:00:35]} Qc8 {[%emt 0:00:36]} 32. Qc2 {[%emt 0:00:18]} Qd7 {[%emt 0:00:51]} 33. R3d2 {[%emt 0:04:25]} Qc8 {[%emt 0:00:38]} 34. Nc3 {[%emt 0:01:47]} Bg5 {[%emt 0:00:47]} 35. Rd3 {[%emt 0:00:39]} Bf6 {[%emt 0:00:46]} 36. Ne4 {[%emt 0:01:02]} Be7 {[%emt 0:00:18]} 37. Nc5 {[%emt 0:04:20]} Rf8 {[%emt 0:01:32]} 38. g3 {[%emt 0:03:14]} Rfe8 {[%emt 0:01:34]} 39. Kg2 {[%emt 0:00:14]} Rf8 {[%emt 0:00:23]} 40. h4 {[%emt 0:00:00]} Ne8 {[%emt 0:02:16]} 41. Ne4 {[%emt 0:00:59]} Nf6 {[%emt 0:02:54]} 42. Qa4 {[%emt 0:04:52]} Qc7 {[%emt 0:06:18]} 43. Nxf6+ {[%emt 0:03:32]} gxf6 {[%emt 0:01:44]} 44. c5 {[%emt 0:01:08]} a6 {[%emt 0:02:05]} 45. Qc2 {[%emt 0:00:53]} Kg7 {[%emt 0:00:41]} 46. a4 {[%emt 0:01:14]} f5 {[%emt 0:02:27]} 47. b5 {[%emt 0:02:28]} axb5 {[%emt 0:01:44]} 48. axb5 {[%emt 0:00:01]} Ra8 {[%emt 0:04:38]} 49. Rb3 {[%emt 0:01:41]} Rab8 {[%emt 0:01:35]} 50. Rdb1 {[%emt 0:02:02]} Bf6 {[%emt 0:00:34]} 51. Rd1 {[%emt 0:06:17]} Rfd8 {[%emt 0:01:54]} 52. Qc4 {[%emt 0:01:04]} Qd7 {[%emt 0:03:46]} 53. bxc6 {[%emt 0:08:45]} bxc6 {[%emt 0:00:07]} 54. Rbd3 {[%emt 0:00:15]} Qc7 {[%emt 0:01:03]} 55. Qa6 {[%emt 0:01:06]} Rdc8 {[%emt 0:01:12]} 56. Qc4 {[%emt 0:00:42]} Ra8 1/2-1/2

[Event "ESTCC U50 2018"]
[Site "Walbrzych"]
[Date "2018.04.18"]
[Round "5"]
[White "Giulian, Rosemary A"]
[Black "Szmyd, Marek"]
[Result "1/2-1/2"]
[ECO "B22"]
[WhiteElo "1880"]
[BlackElo "1898"]
[Annotator "NA"]
[PlyCount "32"]
[EventDate "2018.??.??"]
[EventCountry "POL"]
[SourceTitle "playchess.com"]
[Source "ChessBase"]
[SourceQuality "1"]
[WhiteTeam "Scotland"]
[BlackTeam "Poland"]
[WhiteTeamCountry "SCO"]
[BlackTeamCountry "POL"]
[TimeControl "40/5400+30:1800+30"]

1. e4 c5 2. c3 {[%emt 0:00:00]} Nf6 3. e5 Nd5 4. d4 cxd4 5. Nf3 Nc6 6. cxd4 d6 7. Bc4 dxe5 8. dxe5 e6 9. O-O Be7 10. Qe2 O-O 11. Rd1 Qc7 12. Bxd5 exd5 13. Nc3 Bg4 14. Nxd5 Bxf3 15. Qxf3 Qxe5 16. Nxe7+ Qxe7 1/2-1/2

[Event "ESTCC U50 2018"]
[Site "Walbrzych"]
[Date "2018.04.18"]
[Round "5"]
[White "Puroila, Sippo"]
[Black "Wielosz, Jaroslaw"]
[Result "1-0"]
[ECO "D94"]
[WhiteElo "1838"]
[BlackElo "2038"]
[Annotator "NA"]
[PlyCount "55"]
[EventDate "2018.??.??"]
[EventCountry "POL"]
[SourceTitle "playchess.com"]
[Source "ChessBase"]
[SourceQuality "1"]
[WhiteTeam "Finland"]
[BlackTeam "Poland"]
[WhiteTeamCountry "FIN"]
[BlackTeamCountry "POL"]
[TimeControl "40/5400+30:1800+30"]

1. d4 {[%emt 0:00:00]} Nf6 {[%emt 0:00:07]} 2. c4 {[%emt 0:00:00]} g6 {[%emt 0:00:15]} 3. Nf3 {[%emt 0:00:00]} Bg7 {[%emt 0:00:11]} 4. Nc3 {[%emt 0:00:17]} d5 {[%emt 0:00:13]} 5. e3 {[%emt 0:01:11]} O-O {[%emt 0:00:14]} 6. b3 {[%emt 0:00:50]} c5 {[%emt 0:02:27]} 7. dxc5 {[%emt 0:01:23] D94: Grünfeld: 4 Nf3 Bg7 5 e3} (7. cxd5 Nxd5 8. Nxd5 Qxd5 9. Bc4 Qd8 10. Ne5 cxd4 11. exd4 Bxe5 12. dxe5 Qa5+ 13. Kf1 Qxe5 14. Bh6 Re8 {0-1 (40) Gavasheli,A (2227)-Flear,G (2455) San Sebastian 2017}) 7... Ne4 {[%emt 0:01:59]} 8. Nxe4 {[%emt 0:00:02]} Bxa1 {[%emt 0:06:38]} ({Better is} 8... dxe4 $11 9. Nd4 Na6) 9. cxd5 Bf5 {[%emt 0:18:45]} 10. Ng3 {[%emt 0:04:38]} Qa5+ $146 {[%emt 0:05:22]} ({Predecessor:} 10... Bg4 11. Be2 Bc3+ 12. Kf1 Qa5 13. Qc2 Rc8 14. Ne4 Bg7 {0-1 (34) Witthans,M-Wencki,J Krefeld 2010}) 11. Bd2 {[%emt 0:00:03]} Qxa2 {[%emt 0:05:24]} 12. Nxf5 {[%emt 0:02:20]} gxf5 {[%emt 0:00:15]} 13. Bd3 {[%emt 0:00:14]} Bf6 {[%emt 0:12:20]} 14. Bxf5 {[%emt 0:00:36]} Qa1 {[%emt 0:08:30]} 15. Bb1 {[%emt 0:00:03]} Qb2 {[%emt 0:03:22]} 16. O-O {[%emt 0:01:50]} Nd7 {[%emt 0:02:54]} 17. Qe2 {[%emt 0:06:02]} Qxb3 {[%emt 0:10:04]} 18. Nd4 {[%emt 0:00:06]} Qxd5 {[%emt 0:04:15]} 19. Qg4+ {[%emt 0:01:17]} Kh8 {[%emt 0:05:26]} 20. Qh3 {[%emt 0:01:19]} h5 {[%emt 0:00:25]} 21. Bf5 $18 {[%emt 0:00:55]} (21. Nf5 h4 22. Qg4 Qxg2+ 23. Qxg2) 21... h4 {[%emt 0:04:18]} 22. Qg4 {[%emt 0:00:13]} Rg8 {[%emt 0:01:42]} 23. Qh5+ {[%emt 0:00:03]} Kg7 {[%emt 0:00:09]} 24. e4 {[%emt 0:00:07]} Rh8 {[%emt 0:05:00]} 25. Qg4+ {[%emt 0:00:36]} Kf8 {[%emt 0:00:15]} 26. exd5 {[%emt 0:00:06]} Ne5 {[%emt 0:00:44]} 27. Qe2 {[%emt 0:00:42]} Rd8 {[%emt 0:00:15]} 28. Be4 {[%emt 0:00:54]} 1-0

[Event "ESTCC U50 2018"]
[Site "Walbrzych"]
[Date "2018.04.18"]
[Round "5"]
[White "Daleczko, Zbigniew"]
[Black "Aird, Ian"]
[Result "1-0"]
[ECO "C59"]
[WhiteElo "1835"]
[BlackElo "1785"]
[Annotator "NA"]
[PlyCount "112"]
[EventDate "2018.??.??"]
[EventCountry "POL"]
[SourceTitle "playchess.com"]
[Source "ChessBase"]
[SourceQuality "1"]
[WhiteTeam "Poland"]
[BlackTeam "Scotland"]
[WhiteTeamCountry "POL"]
[BlackTeamCountry "SCO"]
[TimeControl "40/5400+30:1800+30"]

1. e4 e5 2. Nf3 Nc6 3. Bc4 Nf6 4. Ng5 d5 5. exd5 Na5 6. Bb5+ c6 7. dxc6 bxc6 8. Be2 h6 9. Nf3 Bd6 10. d3 O-O 11. h3 Qc7 12. Nc3 Nd5 13. Ne4 Be7 14. Bd2 f5 15. Nc3 Bf6 16. Nxd5 cxd5 17. Bxa5 Qxa5+ 18. c3 d4 19. O-O Be6 20. cxd4 exd4 21. b3 Rac8 22. Nd2 Rc5 23. Nc4 Qc7 24. Bf3 a5 25. Re1 Bf7 26. a3 Rb8 27. Rb1 Rcb5 28. Qc2 Bg5 29. g3 Kh8 30. Kg2 Kg8 31. Qa2 Kh7 32. a4 Rc5 33. h4 Bf6 34. Qd2 Kg8 35. Qd1 Kh8 36. Qd2 Kg8 37. Rb2 Kh8 38. Reb1 Kg8 39. Na3 Rb4 40. Nc2 Rxb3 41. Rxb3 Bxb3 42. Rxb3 Rxc2 43. Qe1 Qe7 44. Bd5+ Kh7 45. Be6 g6 46. Rb6 Rc5 47. Qb1 Bg7 48. Qb3 Be5 49. h5 f4 50. Bg8+ Kh8 51. Rxg6 f3+ 52. Kxf3 Qf8+ 53. Kg2 Qa8+ 54. f3 Bg7 55. Rxg7 Rc2+ 56. Kh3 Rc4 1-0

[Event "ESTCC U50 2018"]
[Site "Walbrzych"]
[Date "2018.04.18"]
[Round "5"]
[White "Webster, Jim J"]
[Black "Szydelko, Kazimierz"]
[Result "1/2-1/2"]
[ECO "A50"]
[WhiteElo "1769"]
[BlackElo "1689"]
[Annotator "NA"]
[PlyCount "95"]
[EventDate "2018.??.??"]
[EventCountry "POL"]
[SourceTitle "playchess.com"]
[Source "ChessBase"]
[SourceQuality "1"]
[WhiteTeam "Scotland"]
[BlackTeam "Poland"]
[WhiteTeamCountry "SCO"]
[BlackTeamCountry "POL"]
[TimeControl "40/5400+30:1800+30"]

1. d4 {[%emt 0:00:00]} Nf6 {[%emt 0:00:16]} 2. c4 {[%emt 0:00:00]} b6 {[%emt 0:00:24]} 3. Nc3 {[%emt 0:00:21]} Bb7 {[%emt 0:00:07]} 4. Nf3 {[%emt 0:00:40]} e6 {[%emt 0:00:07]} 5. e3 {[%emt 0:00:25]} d5 {[%emt 0:00:43]} 6. cxd5 {[%emt 0:00:58]} Nxd5 {[%emt 0:00:23]} 7. Be2 {[%emt 0:02:32]} Be7 {[%emt 0:00:27]} 8. O-O {[%emt 0:00:10]} O-O {[%emt 0:00:03]} 9. a3 {[%emt 0:00:21]} Nd7 {[%emt 0:00:34]} 10. Qc2 {[%emt 0:01:28]} c5 {[%emt 0:01:51]} 11. dxc5 {[%emt 0:03:38]} Nxc3 {[%emt 0:01:56]} 12. Qxc3 {[%emt 0:00:28]} Bf6 {[%emt 0:00:22]} 13. Qc2 {[%emt 0:01:24]} Rc8 {[%emt 0:02:21]} 14. Rd1 {[%emt 0:03:23]} Rxc5 {[%emt 0:01:09]} 15. Qd2 {[%emt 0:00:12]} Rd5 {[%emt 0:00:47]} 16. Qe1 {[%emt 0:00:20]} Nc5 {[%emt 0:00:46]} 17. Rxd5 {[%emt 0:07:13]} Qxd5 {[%emt 0:02:33]} 18. Bd2 {[%emt 0:05:27]} Bxb2 {[%emt 0:03:33]} 19. Rd1 {[%emt 0:00:06]} Qc6 {[%emt 0:04:24]} 20. Bc3 {[%emt 0:04:52]} Bxc3 {[%emt 0:01:54]} 21. Qxc3 {[%emt 0:01:28]} Rc8 {[%emt 0:00:01]} 22. Ne1 {[%emt 0:09:53]} Qa4 {[%emt 0:07:18]} 23. Rd4 {[%emt 0:10:44]} Qe8 {[%emt 0:04:34]} 24. Qb2 {[%emt 0:03:07]} Na4 {[%emt 0:04:36]} 25. Qd2 {[%emt 0:03:08]} Nc3 {[%emt 0:03:06]} 26. Bf3 {[%emt 0:03:10]} Bxf3 {[%emt 0:00:25]} 27. Nxf3 {[%emt 0:00:11]} Nb5 {[%emt 0:01:27]} 28. Rd3 {[%emt 0:02:50]} f6 {[%emt 0:05:03]} 29. h3 {[%emt 0:03:52]} Qc6 {[%emt 0:07:48]} 30. Kh2 {[%emt 0:01:36]} Rc7 {[%emt 0:03:35]} 31. a4 {[%emt 0:00:44]} Nc3 {[%emt 0:00:42]} 32. Rd6 {[%emt 0:02:44]} Qxa4 {[%emt 0:02:13]} 33. Rd8+ {[%emt 0:01:53]} Kf7 {[%emt 0:00:51]} 34. Qd6 {[%emt 0:00:13]} Re7 {[%emt 0:02:18]} 35. Qb8 {[%emt 0:01:22]} e5 {[%emt 0:17:37]} 36. Rf8+ {[%emt 0:04:03]} Kg6 {[%emt 0:03:04]} 37. Qc8 {[%emt 0:00:38]} Ne2 {[%emt 0:10:24]} 38. g3 {[%emt 0:00:59]} Qe4 {[%emt 0:01:26]} 39. Nh4+ {[%emt 0:04:21]} Kh5 {[%emt 0:07:42]} 40. Qd8 {[%emt 0:00:00]} Nxg3 {[%emt 0:00:56]} 41. fxg3 {[%emt 0:02:44]} Qc2+ {[%emt 0:02:21]} 42. Ng2 {[%emt 0:00:14]} Qc7 {[%emt 0:00:32]} 43. Qd1+ {[%emt 0:00:46]} Kh6 {[%emt 0:08:02]} 44. Qg4 {[%emt 0:00:20]} Qd7 {[%emt 0:01:35]} 45. Qh4+ {[%emt 0:01:44]} Kg6 {[%emt 0:01:10]} 46. Qe4+ {[%emt 0:01:01]} Kh6 {[%emt 0:03:28]} 47. Qh4+ {[%emt 0:04:19]} Kg6 {[%emt 0:00:14]} 48. Qe4+ 1/2-1/2

[Event "ESTCC U50 2018"]
[Site "Walbrzych"]
[Date "2018.04.18"]
[Round "5"]
[White "Germann, Martin"]
[Black "Viljava, Tapani"]
[Result "0-1"]
[ECO "B08"]
[WhiteElo "1755"]
[BlackElo "2162"]
[Annotator "NA"]
[PlyCount "64"]
[EventDate "2018.??.??"]
[EventCountry "POL"]
[SourceTitle "playchess.com"]
[Source "ChessBase"]
[SourceQuality "1"]
[WhiteTeam "Switzerland"]
[BlackTeam "Finland"]
[WhiteTeamCountry "SUI"]
[BlackTeamCountry "FIN"]
[TimeControl "40/5400+30:1800+30"]

1. d4 {[%emt 0:00:00]} g6 {[%emt 0:02:27]} 2. e4 {[%emt 0:01:02]} Bg7 {[%emt 0:00:11]} 3. Nf3 {[%emt 0:00:13]} d6 {[%emt 0:02:12]} 4. Nc3 {[%emt 0:00:39]} Nf6 {[%emt 0:01:43]} 5. Be3 {[%emt 0:00:44]} a6 {[%emt 0:02:33]} 6. Qd2 {[%emt 0:03:00]} b5 {[%emt 0:01:12]} 7. Bd3 {[%emt 0:05:37]} Bb7 {[%emt 0:01:37]} 8. a3 {[%emt 0:08:32]} Nbd7 {[%emt 0:10:55]} 9. Bh6 {[%emt 0:08:14]} O-O {[%emt 0:04:43]} 10. h4 {[%emt 0:01:40]} c5 {[%emt 0:21:36]} 11. h5 {[%emt 0:08:24]} cxd4 {[%emt 0:10:14]} 12. Nxd4 {[%emt 0:05:13]} Nc5 {[%emt 0:04:26]} 13. hxg6 {[%emt 0:12:14]} fxg6 {[%emt 0:00:19]} 14. Bxg7 {[%emt 0:03:09]} Kxg7 {[%emt 0:00:02]} 15. f3 {[%emt 0:00:23]} e5 {[%emt 0:07:34]} 16. Nde2 $11 {[%emt 0:02:45]} Qb6 {[%emt 0:03:48]} 17. Nd5 {[%emt 0:06:22]} Bxd5 {[%emt 0:03:29]} 18. exd5 {[%emt 0:00:09]} Nxd3+ {[%emt 0:02:47]} 19. Qxd3 {[%emt 0:01:18]} b4 {[%emt 0:02:49]} 20. a4 {[%emt 0:03:56]} Rac8 {[%emt 0:01:42]} 21. Rd1 {[%emt 0:03:33]} Rc5 {[%emt 0:02:20]} 22. Qd2 {[%emt 0:03:57]} Qb7 {[%emt 0:01:41]} 23. Qh6+ {[%emt 0:03:28]} Kg8 {[%emt 0:00:16]} 24. Qh3 {[%emt 0:01:48]} Re8 {[%emt 0:01:55]} 25. O-O {[%emt 0:03:12]} Rxd5 {[%emt 0:02:52]} 26. Qh4 {[%emt 0:01:29]} Kg7 {[%emt 0:01:16]} 27. Qc4 {[%emt 0:00:42]} Rxd1 {[%emt 0:01:50]} 28. Rxd1 {[%emt 0:00:02]} d5 {[%emt 0:00:11]} 29. Qb3 {[%emt 0:00:12]} Qb6+ {[%emt 0:00:22]} 30. Kf1 {[%emt 0:00:35]} Rf8 {[%emt 0:01:16]} 31. c3 {[%emt 0:00:51]} Ne4 {[%emt 0:00:28]} 32. Nd4 {[%emt 0:02:08]} exd4 {[%emt 0:00:27]} 0-1

[Event "ESTCC U50 2018"]
[Site "Walbrzych"]
[Date "2018.04.18"]
[Round "5"]
[White "Telenius, Kimmo"]
[Black "Czyz, Andrzej"]
[Result "0-1"]
[ECO "C30"]
[WhiteElo "1603"]
[BlackElo "1999"]
[Annotator "NA"]
[PlyCount "50"]
[EventDate "2018.??.??"]
[EventCountry "POL"]
[SourceTitle "playchess.com"]
[Source "ChessBase"]
[SourceQuality "1"]
[WhiteTeam "Finland"]
[BlackTeam "Poland"]
[WhiteTeamCountry "FIN"]
[BlackTeamCountry "POL"]
[TimeControl "40/5400+30:1800+30"]

1. e4 {[%emt 0:00:00]} e5 {[%emt 0:00:05]} 2. f4 {[%emt 0:00:51]} Bc5 {[%emt 0:00:16]} 3. Nf3 {[%emt 0:00:29]} d6 {[%emt 0:00:08]} 4. c3 {[%emt 0:02:04]} Bg4 {[%emt 0:01:08]} 5. Be2 {[%emt 0:01:19]} Nc6 {[%emt 0:05:25] C30: King's Gambit Declined} 6. b4 {[%emt 0:02:11]} Bxf3 {[%emt 0:00:55]} 7. Bxf3 {[%emt 0:00:45]} Bb6 {[%emt 0:00:22]} 8. h4 $146 {[%emt 0:03:43]} ({Predecessor:} 8. b5 Na5 9. d4 Qh4+ 10. g3 Qf6 11. O-O Qe7 12. Qd3 h5 13. Kg2 O-O-O 14. Be3 h4 15. Nd2 Nf6 16. g4 {½-½ (16) Mensing,F (2200)-Barrios,R (2268) Bled 2002}) 8... Qf6 {[%emt 0:01:39]} 9. a4 {[%emt 0:03:45]} Qxf4 {[%emt 0:04:31]} 10. Qe2 {[%emt 0:02:13]} (10. d4 $5 {[%cal Rc1f4]} Qg3+ 11. Kf1 $15) 10... a5 {[%emt 0:03:21]} 11. b5 {[%emt 0:01:44]} Nd8 {[%emt 0:00:35]} 12. Na3 {[%emt 0:01:17]} Ne6 {[%emt 0:01:34]} 13. d3 {[%emt 0:06:50]} Qg3+ {[%emt 0:01:13]} 14. Kd1 {[%emt 0:04:07]} Nf4 {[%emt 0:01:23]} 15. Bxf4 {[%emt 0:01:29]} Qxf4 {[%emt 0:00:18]} 16. Nc2 {[%emt 0:03:13]} Nf6 {[%emt 0:02:35]} 17. Rh3 {[%emt 0:06:50]} h5 {[%emt 0:01:05]} 18. g3 {[%emt 0:01:25]} Qh6 {[%emt 0:00:26]} 19. d4 {[%emt 0:01:47]} exd4 {[%emt 0:01:04]} 20. cxd4 {[%emt 0:03:11]} O-O {[%emt 0:01:54]} 21. Rc1 {[%emt 0:03:24]} Rfe8 {[%emt 0:01:35]} 22. Qd3 {[%emt 0:09:08]} Qg6 {[%emt 0:01:53]} 23. Rh2 {[%emt 0:06:17]} Nxe4 {[%emt 0:00:59]} 24. Ne1 {[%emt 0:04:13]} Nf2+ {[%emt 0:02:02]} 25. Rxf2 $19 {[%emt 0:00:28]} Rxe1+ {[%emt 0:00:06]} 0-1

[Event "ESTCC U50 2018"]
[Site "Walbrzych"]
[Date "2018.04.19"]
[Round "6"]
[White "Strutinskaia, Galina"]
[Black "Ograbek, Grzegorz"]
[Result "1/2-1/2"]
[ECO "E73"]
[WhiteElo "2232"]
[BlackElo "2140"]
[Annotator "NA"]
[PlyCount "65"]
[EventDate "2018.??.??"]
[EventCountry "POL"]
[SourceTitle "playchess.com"]
[Source "ChessBase"]
[SourceQuality "1"]
[WhiteTeam "Russia"]
[BlackTeam "Poland"]
[WhiteTeamCountry "RUS"]
[BlackTeamCountry "POL"]
[TimeControl "40/5400+30:1800+30"]

1. c4 Nf6 2. Nc3 g6 3. e4 d6 4. d4 Bg7 5. Be2 O-O 6. h4 h5 7. Nf3 {E73: King's Indian: Averbakh Variation without 6...c5} c5 8. d5 a6 $146 ({Predecessor:} 8... Bg4 9. Be3 a6 10. Qd2 Qa5 11. Bh6 Nbd7 12. Bxg7 Kxg7 13. Ng5 Bxe2 14. Qxe2 b5 {0-1 (29) Dimitrijevic,A (2323)-L'Ami,A (2393) Doha 2014}) 9. a4 e6 10. dxe6 Bxe6 11. Bf4 Qa5 12. O-O Nc6 13. Ng5 Rfe8 14. Bd3 ({Of course not} 14. Bxd6 Rad8 $17) 14... Rad8 15. Nd5 Rd7 16. Ra3 Ng4 17. Bd2 Qd8 18. Bc3 Nd4 19. a5 Ne5 20. Bxd4 cxd4 21. b4 Bxd5 22. exd5 Rc7 23. b5 Nxd3 24. Qxd3 axb5 25. cxb5 Rc3 26. Rxc3 dxc3 27. Ne4 Qd7 28. Nxc3 Bxc3 29. Qxc3 Qxb5 30. Rd1 Re5 $11 31. Qd2 Qc5 32. g3 Qb5 33. Kg2 1/2-1/2